bitfinex/quotes_SOLUSD_20250630
["timestamp","ask_amount","ask_price","bid_price","bid_amount"]
[1751325340320,53.21573528,155.83,155.82,0.2]
[1751325341417,59.63298484,155.83,155.82,0.2]
[1751325343832,56.59771253,155.83,155.82,0.2]
[1751325344137,59.63298484,155.83,155.82,0.2]
[1751325346925,18.933972,155.82,155.81,0.2]
[1751325347230,22.11140588,155.82,155.79,6.64]
[1751325347435,21.82708274,155.8,155.79,6.64]
[1751325348135,28.24556797,155.8,155.79,6.64]
[1751325348720,0.80225916,155.81,155.79,6.64]
[1751325349037,3.31959545,155.81,155.79,6.64]
[1751325349535,0.80231065,155.8,155.79,6.64]
[1751325350332,30.08185461,155.81,155.79,6.64]
[1751325351539,29.27959545,155.81,155.79,6.64]
[1751325351735,26.24432314,155.81,155.79,6.64]
[1751325351933,30.99567874,155.81,155.79,6.64]
[1751325353061,5.03567874,155.81,155.79,6.64]
[1751325353345,5.83798939,155.8,155.79,6.64]
[1751325354621,31.79798939,155.8,155.79,6.64]
[1751325355350,38.21647462,155.8,155.79,6.64]
[1751325356344,57.00828505,155.8,155.79,6.64]
[1751325360661,0.80231065,155.8,155.79,6.64]
[1751325361036,1.08663379,155.8,155.79,6.64]
[1751325365840,5.83798939,155.8,155.79,6.64]
[1751325366325,12.25647462,155.8,155.79,6.64]
[1751325366668,31.04828505,155.8,155.79,6.64]
[1751325366957,47.09449814,155.8,155.75,0.2]
[1751325367127,5.03567874,155.76,155.75,0.2]
[1751325367327,31.01567874,155.76,155.75,0.2]
[1751325367829,37.43581227,155.76,155.75,0.2]
[1751325368232,31.01567874,155.76,155.75,0.2]
[1751325370941,25.96,155.77,155.75,0.2]
[1751325371249,0.80241366,155.78,155.75,11.37180241]
[1751325371427,0.80241366,155.78,155.75,6.62044681]
[1751325372056,5.55376926,155.78,155.75,6.62044681]
[1751325372847,0.80241366,155.78,155.75,6.62044681]
[1751325377247,5.55376926,155.78,155.75,6.62044681]
[1751325378053,0.80241366,155.78,155.75,6.62044681]
[1751325379155,5.55376926,155.78,155.75,6.62044681]
[1751325379754,0.80241366,155.78,155.75,6.62044681]
[1751325379953,5.55376926,155.78,155.75,6.62044681]
[1751325380758,5.55376926,155.78,155.75,0.2]
[1751325381238,4.7513556,155.77,155.75,0.2]
[1751325381552,30.7113556,155.77,155.75,0.2]
[1751325383165,0.80251669,155.76,155.75,0.2]
[1751325383466,0.80241366,155.78,155.75,11.37190134]
[1751325387764,172.16,155.79,155.75,11.37190134]
[1751325387977,4.7513556,155.84,155.78,4.7513556]
[1751325387978,4.7513556,155.82,155.78,4.7513556]
[1751325388271,25.96,155.81,155.78,4.7513556]
[1751325388566,25.96,155.81,155.77,4.7513556]
[1751325388865,5.55356327,155.82,155.77,4.7513556]
[1751325389043,25.96,155.81,155.77,4.7513556]
[1751325389245,5.55366625,155.8,155.75,12.94484574]
[1751325389459,5.55366625,155.8,155.75,17.69620134]
[1751325390748,1.08663379,155.8,155.75,17.69620134]
[1751325390955,31.79798939,155.8,155.75,17.69620134]
[1751325391152,31.79798939,155.8,155.76,4.7513556]
[1751325392979,4.7513556,155.82,155.77,4.7513556]
[1751325393260,25.96,155.82,155.79,4.7513556]
[1751325394567,35.875685,155.83,155.79,4.7513556]
[1751325395263,35.875685,155.83,155.77,6.4193481]
[1751325395264,4.7513556,155.82,155.78,4.7513556]
[1751325397475,4.7513556,155.82,155.79,6.64]
[1751325400074,42.29299584,155.83,155.79,6.64]
[1751325406076,4.7513556,155.82,155.79,6.64]
[1751325406281,11.16929093,155.82,155.79,6.64]
[1751325407464,31.1243294,155.83,155.8,4.7513556]
[1751325407465,5.1643294,155.83,155.8,4.7513556]
[1751325407665,4.36217321,155.83,155.81,4.7513556]
[1751325408264,4.36217321,155.83,155.82,4.7513556]
[1751325408888,4.36217321,155.83,155.82,30.7513556]
[1751325410198,4.36217321,155.83,155.82,37.169017]
[1751325411367,4.36217321,155.83,155.82,38.677617]
[1751325413267,146.2,155.9,155.83,6.3104]
[1751325413472,146.2,155.9,155.88,4.7513556]
[1751325413691,146.2,155.9,155.88,6.64]
[1751325415400,146.2,155.9,155.88,11.3913556]
[1751325415603,146.2,155.9,155.89,4.7513556]
[1751325416375,146.2,155.9,155.88,6.64]
[1751325416376,146.2,155.9,155.88,11.3913556]
[1751325420302,6.41360479,155.92,155.88,11.3913556]
[1751325420612,7.21529796,155.92,155.88,11.3913556]
[1751325423904,33.15529796,155.92,155.88,11.3913556]
[1751325425877,7.21529796,155.92,155.88,11.3913556]
[1751325427122,7.21529796,155.92,155.89,4.7513556]
[1751325429794,7.21529796,155.92,155.88,11.3913556]
[1751325430404,11.96665356,155.92,155.88,11.3913556]
[1751325433105,11.96665356,155.92,155.88,6.64]
[1751325433415,5.03567874,155.91,155.88,6.64]
[1751325433598,6.41477965,155.89,155.88,6.64]
[1751325435324,33.15632441,155.9,155.88,6.64]
[1751325437712,26.74179602,155.9,155.88,6.64]
[1751325440605,33.15621718,155.9,155.88,6.64]
[1751325440807,37.90757278,155.9,155.88,6.64]
[1751325442800,33.15621718,155.9,155.88,6.64]
[1751325443001,37.90757278,155.9,155.88,6.64]
[1751325445010,26.74179602,155.9,155.88,6.64]
[1751325446117,33.15616864,155.9,155.88,6.64]
[1751325448328,26.74179602,155.9,155.88,6.64]
[1751325449931,26.74169317,155.92,155.89,3.0373103]
[1751325450311,27.02601631,155.92,155.89,3.0373103]
[1751325451833,27.02601631,155.92,155.89,4.74437722]
[1751325453818,33.43967911,155.92,155.88,11.38437722]
[1751325454630,7.49967911,155.92,155.88,11.38437722]
[1751325454837,25.94,155.91,155.88,11.38437722]
[1751325456041,31.30018496,155.91,155.88,11.38437722]
[1751325458046,31.30018496,155.91,155.89,4.74437722]
[1751325459444,25.94,155.91,155.89,4.74437722]
[1751325462335,7.49967911,155.92,155.89,4.74437722]
[1751325462518,25.94,155.91,155.89,4.74437722]
[1751325466525,25.94,155.91,155.88,11.38437722]
[1751325467638,0.80179602,155.9,155.88,11.38437722]
[1751325467936,0.80179602,155.9,155.88,6.64]
[1751325468141,30.82653879,155.89,155.88,6.64]
[1751325468323,187.33688686,155.89,155.88,6.64]
[1751325469644,193.75166651,155.89,155.88,6.64]
[1751325470276,26.0,155.86,155.8,4.74437722]
[1751325470546,26.74205325,155.85,155.84,4.74437722]
[1751325472735,26.74205325,155.85,155.83,4.74437722]
[1751325473847,26.74205325,155.85,155.83,3.03894169]
[1751325475441,26.74205325,155.85,155.84,3.03894169]
[1751325479759,27.02637639,155.85,155.83,3.03894169]
[1751325481782,27.02637639,155.85,155.84,3.03894169]
[1751325484381,26.74205325,155.85,155.84,3.03894169]
[1751325485060,0.80205325,155.85,155.84,3.03894169]
[1751325485373,27.02632493,155.86,155.84,3.03894169]
[1751325485578,33.44241452,155.86,155.84,3.03894169]
[1751325488064,27.02632493,155.86,155.84,3.03894169]
[1751325488664,27.02632493,155.86,155.85,3.03894169]
[1751325488870,33.4423393,155.86,155.84,3.03894169]
[1751325489070,7.5023393,155.86,155.84,3.03894169]
[1751325489372,27.02632493,155.86,155.85,3.03894169]
[1751325490396,27.02632493,155.86,155.81,13.0579443]
[1751325490685,27.02632493,155.86,155.85,3.03894169]
[1751325491887,27.02632493,155.86,155.81,13.0579443]
[1751325492086,27.02632493,155.86,155.85,3.03894169]
[1751325495489,26.74200179,155.86,155.85,3.03894169]
[1751325497101,0.80200179,155.86,155.85,3.03894169]
[1751325497271,1.08627348,155.87,155.85,3.03894169]
[1751325497671,27.02627348,155.87,155.85,3.03894169]
[1751325501196,26.74195034,155.87,155.86,3.03894169]
[1751325501373,1.08622203,155.88,155.86,3.03894169]
[1751325501575,1.08622203,155.88,155.87,3.03894169]
[1751325501766,1.08622203,155.88,155.83,6.41705969]
[1751325501996,1.08622203,155.88,155.87,3.03894169]
[1751325503180,7.5014132,155.88,155.87,3.03894169]
[1751325503978,1.08622203,155.88,155.87,3.03894169]
[1751325509376,7.5014132,155.88,155.85,6.62]
[1751325509585,7.5014132,155.88,155.86,3.03894169]
[1751325510081,0.28432314,155.86,155.8,3.03894169]
[1751325510407,0.28432314,155.83,155.79,9.65894169]
[1751325510690,3.18110326,155.8,155.79,6.62]
[1751325510894,36.34189914,155.8,155.79,6.62]
[1751325511188,33.30295745,155.8,155.79,6.62]
[1751325513788,33.44511902,155.8,155.79,6.62]
[1751325513984,33.58728059,155.8,155.79,6.62]
[1751325514689,38.33974549,155.8,155.79,6.62]
[1751325519989,33.58728059,155.8,155.79,6.62]
[1751325521476,7.64728059,155.8,155.79,6.62]
[1751325521689,33.58728059,155.8,155.79,6.62]
[1751325523199,7.64728059,155.8,155.79,6.62]
[1751325523407,33.58728059,155.8,155.79,6.62]
[1751325524199,7.64728059,155.8,155.79,6.62]
[1751325524387,33.58728059,155.8,155.79,11.3724649]
[1751325525001,33.58728059,155.8,155.79,6.62]
[1751325525197,38.33974549,155.8,155.79,6.62]
[1751325525386,0.28432314,155.79,155.75,0.2]
[1751325525592,0.14216157,155.77,155.75,0.2]
[1751325525791,26.22432314,155.76,155.75,0.2]
[1751325525993,27.02683983,155.76,155.75,4.9524649]
[1751325526399,33.44697336,155.76,155.75,4.9524649]
[1751325528193,27.02683983,155.76,155.75,4.9524649]
[1751325528404,33.44697336,155.76,155.75,4.9524649]
[1751325529888,33.44697336,155.76,155.75,0.2]
[1751325530309,38.34159983,155.76,155.75,0.2]
[1751325530504,56.99124869,155.76,155.75,0.2]
[1751325533918,33.58913493,155.76,155.75,0.2]
[1751325534224,38.34159983,155.76,155.75,0.2]
[1751325535915,33.60913493,155.76,155.75,0.2]
[1751325536118,7.64913493,155.76,155.75,0.2]
[1751325536323,33.60913493,155.76,155.75,0.2]
[1751325537315,0.80251669,155.76,155.75,4.9524649]
[1751325537621,7.22233793,155.77,155.75,4.9524649]
[1751325537836,5.84936059,155.78,155.76,4.7524649]
[1751325537997,6.13368373,155.78,155.77,4.7524649]
[1751325538191,32.11368373,155.78,155.77,4.7524649]
[1751325538518,31.82936059,155.78,155.77,4.7524649]
[1751325538690,32.11368373,155.78,155.77,4.7524649]
[1751325538890,6.13368373,155.78,155.77,4.7524649]
[1751325539098,31.31127007,155.78,155.77,4.7524649]
[1751325539700,32.11368373,155.78,155.77,4.7524649]
[1751325540532,5.04694693,155.78,155.77,4.7524649]
[1751325551912,5.04694693,155.78,155.75,0.2]
[1751325552224,5.04694693,155.78,155.77,23.40211376]
[1751325552421,5.04694693,155.78,155.77,62.27273514]
[1751325552613,146.2,155.85,155.79,18.64964886]
[1751325552814,152.61642605,155.85,155.83,4.7524649]
[1751325554047,152.61642605,155.85,155.82,11.3924649]
[1751325556622,178.61642605,155.85,155.82,11.3924649]
[1751325556935,178.61642605,155.85,155.83,4.7524649]
[1751325557136,152.61642605,155.85,155.83,4.7524649]
[1751325557321,178.59642605,155.85,155.83,4.7524649]
[1751325557722,146.2,155.85,155.84,4.7524649]
[1751325557934,6.41604787,155.86,155.82,6.64]
[1751325558246,6.41601902,155.86,155.84,4.7524649]
[1751325558421,5.38684653,155.86,155.82,6.64]
[1751325558622,5.38684653,155.86,155.84,4.7524649]
[1751325560240,11.80309835,155.86,155.84,4.7524649]
[1751325560445,0.80205325,155.85,155.82,11.3924649]
[1751325560622,12.60510014,155.86,155.82,11.3924649]
[1751325561017,12.60510014,155.86,155.83,4.7524649]
[1751325562338,11.80309835,155.86,155.83,4.7524649]
[1751325562646,11.80309835,155.86,155.84,4.7524649]
[1751325564151,11.80309835,155.86,155.83,4.7524649]
[1751325565218,11.80309835,155.86,155.82,11.3924649]
[1751325568621,11.80309835,155.86,155.83,4.7524649]
[1751325569729,1.08637639,155.85,155.82,6.64]
[1751325571049,6.41683778,155.84,155.82,6.64]
[1751325571430,6.41683778,155.84,155.82,11.3924649]
[1751325571949,6.41683778,155.84,155.82,6.64]
[1751325575466,6.41683778,155.84,155.82,11.3924649]
[1751325578049,6.41660358,155.85,155.82,11.3924649]
[1751325578958,7.21865683,155.85,155.82,6.64]
[1751325579161,11.97112173,155.85,155.82,6.64]
[1751325579356,17.02613782,155.85,155.82,6.64]
[1751325580030,12.27367292,155.85,155.82,6.64]
[1751325582734,12.27367292,155.85,155.82,11.3924649]
[1751325582941,11.47161967,155.85,155.82,11.3924649]
[1751325583444,11.47161967,155.85,155.83,4.7524649]
[1751325583844,11.47161967,155.85,155.82,11.3924649]
[1751325586572,6.70033751,155.86,155.82,11.3924649]
[1751325587878,12.2548042,155.86,155.82,6.64]
[1751325588165,17.21084078,155.86,155.82,6.64]
[1751325589284,22.01457219,155.86,155.82,6.64]
[1751325590088,17.05853561,155.86,155.82,6.64]
[1751325590265,12.2548042,155.86,155.82,6.64]
[1751325590687,17.05872346,155.86,155.82,6.64]
[1751325590985,7.5023393,155.86,155.82,11.3924649]
[1751325591195,32.35578133,155.87,155.83,4.7524649]
[1751325591567,32.35578133,155.87,155.82,6.64]
[1751325591568,6.41526406,155.88,155.84,4.7524649]
[1751325591769,32.35526406,155.88,155.84,4.7524649]
[1751325592081,59.15682025,155.89,155.85,4.7524649]
[1751325592269,16.29070649,155.91,155.88,4.7524649]
[1751325592578,16.29070649,155.91,155.89,6.64]
[1751325593463,22.70478575,155.91,155.89,6.64]
[1751325593658,27.45725065,155.91,155.85,6.2311]
[1751325593958,5.83858406,155.9,155.86,6.64]
[1751325594378,6.41477965,155.89,155.86,6.64]
[1751325594584,11.16724455,155.89,155.86,6.64]
[1751325594767,11.16724455,155.89,155.81,38.91441621]
[1751325594768,4.7524649,155.87,155.83,4.7524649]
[1751325594964,4.7524649,155.86,155.83,6.64]
[1751325595392,4.7524649,155.87,155.83,11.3924649]
[1751325596683,6.41601437,155.86,155.83,11.3924649]
[1751325598301,6.41560274,155.87,155.83,11.3924649]
[1751325599084,5.83878983,155.86,155.83,6.64]
[1751325599398,1.08632493,155.86,155.83,6.64]
[1751325599560,4.7524649,155.84,155.83,6.64]
[1751325600264,5.55456962,155.84,155.83,6.64]
[1751325600588,11.9714074,155.84,155.83,6.64]
[1751325601289,7.2189425,155.84,155.83,6.64]
[1751325603492,12.02537721,155.85,155.83,6.64]
[1751325603688,7.21864403,155.85,155.83,6.64]
[1751325607191,11.97110893,155.85,155.83,6.64]
[1751325609094,7.21864403,155.85,155.83,6.64]
[1751325611674,7.31864403,155.85,155.83,6.64]
[1751325614304,7.31864403,155.85,155.82,6.64]
[1751325615590,7.31864403,155.85,155.82,11.3924649]
[1751325615903,7.31864403,155.85,155.82,6.64]
[1751325616083,0.28432314,155.84,155.82,6.64]
[1751325617000,7.31864403,155.85,155.82,11.3924649]
[1751325619799,7.31864403,155.85,155.82,6.64]
[1751325620082,9.6050771,155.83,155.82,6.64]
[1751325620395,41.49833946,155.83,155.82,6.64]
[1751325620792,36.78788883,155.83,155.82,6.64]
[1751325621484,43.20513839,155.83,155.82,6.64]
[1751325624406,38.39835536,155.83,155.82,6.64]
[1751325625298,33.64589046,155.83,155.82,6.64]
[1751325625607,38.39835536,155.83,155.82,6.64]
[1751325633799,36.68696935,155.83,155.82,6.64]
[1751325634108,36.68696935,155.83,155.78,0.2]
[1751325634109,26.0,155.8,155.78,0.2]
[1751325634310,181.17229156,155.79,155.78,0.2]
[1751325634512,180.36992941,155.79,155.78,0.2]
[1751325635421,186.78882664,155.79,155.78,0.2]
[1751325635821,188.50170955,155.79,155.78,0.2]
[1751325641430,183.77934374,155.79,155.78,0.2]
[1751325644236,146.2,155.79,155.78,0.2]
[1751325644438,146.2,155.79,155.78,11.37327108]
[1751325644602,146.2,155.79,155.78,4.9539618]
[1751325644927,151.23541474,155.79,155.78,4.9539618]
[1751325646930,146.2,155.79,155.78,4.9539618]
[1751325647734,146.2,155.79,155.78,0.2]
[1751325647901,151.16319604,155.79,155.78,0.2]
[1751325648611,146.2,155.79,155.78,0.2]
[1751325649225,152.61889723,155.79,155.78,0.2]
[1751325650008,157.65718217,155.79,155.78,0.2]
[1751325650214,157.79934374,155.79,155.78,0.2]
[1751325652974,146.2,155.79,155.78,4.9539618]
[1751325655722,146.2,155.79,155.78,0.2]
[1751325660047,146.2,155.79,155.78,4.9539618]
[1751325660958,152.90322037,155.79,155.78,0.2]
[1751325661118,157.65718217,155.79,155.78,0.2]
[1751325661324,152.90322037,155.79,155.78,0.2]
[1751325661543,157.65718217,155.79,155.78,0.2]
[1751325662242,162.74374067,155.79,155.78,0.2]
[1751325662834,188.74374067,155.79,155.78,0.2]
[1751325664047,183.65718217,155.79,155.78,0.2]
[1751325664222,178.90322037,155.79,155.78,0.2]
[1751325668351,179.04538194,155.79,155.78,0.2]
[1751325668549,183.79934374,155.79,155.78,0.2]
[1751325668752,146.2,155.79,155.78,4.9539618]
[1751325674454,151.3227282,155.79,155.78,4.9539618]
[1751325675864,188.77991037,155.79,155.78,0.2]
[1751325676438,183.65718217,155.79,155.78,0.2]
[1751325677256,87.05440753,155.79,155.78,0.2]
[1751325677440,31.03828494,155.76,155.75,6.86]
[1751325677641,31.42359788,155.76,155.75,6.86]
[1751325677965,31.13927474,155.76,155.75,6.86]
[1751325679242,5.11927474,155.76,155.75,11.6139618]
[1751325679452,17.3802099,155.76,155.75,6.86]
[1751325679648,6.20611457,155.76,155.75,6.86]
[1751325680170,12.6262481,155.76,155.75,6.86]
[1751325680463,17.3802099,155.76,155.75,6.86]
[1751325680867,17.52237147,155.76,155.75,0.2]
[1751325682065,12.76840967,155.76,155.75,0.2]
[1751325682360,17.52237147,155.76,155.75,0.2]
[1751325686173,43.60237147,155.76,155.75,0.2]
[1751325687057,38.7062481,155.76,155.75,0.2]
[1751325687661,33.58697336,155.76,155.75,0.2]
[1751325690070,32.47985695,155.77,155.75,4.9539618]
[1751325690273,6.41985695,155.77,155.75,4.9539618]
[1751325690492,32.47985695,155.77,155.75,4.9539618]
[1751325690658,6.41985695,155.77,155.75,4.9539618]
[1751325693472,6.41985695,155.77,155.75,0.2]
[1751325694777,0.80241366,155.78,155.76,4.7539618]
[1751325694965,7.22097866,155.8,155.77,4.7539618]
[1751325695168,33.28097866,155.8,155.78,4.7539618]
[1751325695356,33.28097866,155.8,155.77,11.4539618]
[1751325697581,7.22097866,155.8,155.77,11.4539618]
[1751325697880,33.28097866,155.8,155.77,11.4539618]
[1751325698360,33.28097866,155.8,155.77,6.7]
[1751325698764,5.03828494,155.79,155.77,6.7]
[1751325698960,0.80241366,155.78,155.77,6.7]
[1751325699285,27.1267368,155.78,155.77,6.7]
[1751325699487,32.29598832,155.78,155.77,6.7]
[1751325700085,38.7152976,155.78,155.77,6.9]
[1751325705793,33.54604608,155.78,155.77,6.9]
[1751325708186,33.26172294,155.78,155.77,6.9]
[1751325708387,32.53870209,155.8,155.77,11.6539618]
[1751325708576,6.51870209,155.8,155.77,11.6539618]
[1751325709695,11.63336888,155.8,155.77,11.6539618]
[1751325710493,1.08668529,155.79,155.77,6.9]
[1751325710688,27.12668529,155.79,155.77,6.9]
[1751325710997,31.88064709,155.79,155.77,6.9]
[1751325711196,5.03828494,155.78,155.77,6.9]
[1751325712089,11.45759422,155.78,155.77,0.2]
[1751325713294,11.59975579,155.78,155.77,0.2]
[1751325713503,157.79975579,155.78,155.77,0.2]
[1751325713674,162.59956274,155.78,155.77,0.2]
[1751325714290,157.79975579,155.78,155.77,0.2]
[1751325714573,162.59957395,155.78,155.77,0.2]
[1751325715498,162.60015927,155.78,155.77,0.2]
[1751325719077,16.40015927,155.78,155.77,0.2]
[1751325719278,17.20257293,155.78,155.77,0.2]
[1751325721174,35.85222179,155.78,155.77,0.2]
[1751325721403,40.60618359,155.78,155.77,0.2]
[1751325722001,45.07613357,155.76,155.75,0.2]
[1751325722304,45.07613357,155.76,155.71,0.2]
[1751325722305,0.42648471,155.75,155.71,0.2]
[1751325722483,31.03828494,155.72,155.71,0.2]
[1751325722684,62.68141125,155.72,155.71,0.2]
[1751325723102,62.82357282,155.72,155.71,0.2]
[1751325723300,58.06961102,155.72,155.71,0.2]
[1751325723504,62.82357282,155.72,155.71,0.2]
[1751325723804,64.44495202,155.72,155.71,0.2]
[1751325724176,33.54882865,155.72,155.71,0.2]
[1751325724380,6.70610582,155.72,155.71,0.2]
[1751325724885,1.08704597,155.72,155.71,0.2]
[1751325725277,7.50882865,155.72,155.71,0.2]
[1751325729602,5.18044651,155.72,155.71,0.2]
[1751325731490,37.60222919,155.72,155.71,0.2]
[1751325735407,6.70610582,155.72,155.71,0.2]
[1751325735586,32.48178268,155.72,155.71,0.2]
[1751325735786,32.62394425,155.72,155.71,0.2]
[1751325736082,32.76610582,155.72,155.71,0.2]
[1751325737395,6.70610582,155.72,155.71,0.2]
[1751325737597,32.76610582,155.72,155.71,0.2]
[1751325738602,37.52006762,155.72,155.71,0.2]
[1751325740821,32.76610582,155.72,155.71,0.2]
[1751325741201,37.52006762,155.72,155.71,0.2]
[1751325742219,32.76610582,155.72,155.71,0.2]
[1751325742410,37.52006762,155.72,155.71,0.2]
[1751325742825,5.03828494,155.72,155.71,0.2]
[1751325743005,26.06,155.72,155.71,0.2]
[1751325743326,26.04,155.72,155.71,0.2]
[1751325743509,33.26420078,155.73,155.71,0.2]
[1751325744119,7.22420078,155.73,155.71,0.2]
[1751325744332,33.26420078,155.73,155.71,0.2]
[1751325746801,38.01816258,155.73,155.71,0.2]
[1751325749628,5.18044651,155.72,155.71,0.2]
[1751325750728,10.43986993,155.72,155.71,0.2]
[1751325751242,11.60222919,155.72,155.71,0.2]
[1751325755926,32.88826739,155.72,155.71,0.2]
[1751325756324,37.64222919,155.72,155.71,0.2]
[1751325759136,32.88826739,155.72,155.71,0.2]
[1751325759338,32.74610582,155.72,155.71,0.2]
[1751325760039,6.70610582,155.72,155.71,0.2]
[1751325760227,32.72610582,155.72,155.71,0.2]
[1751325760728,37.48006762,155.72,155.71,0.2]
[1751325763050,42.43209812,155.72,155.71,0.2]
[1751325764338,32.72610582,155.72,155.71,0.2]
[1751325765354,6.70610582,155.72,155.71,0.2]
[1751325765648,26.32432314,155.72,155.71,0.2]
[1751325766134,26.30432314,155.72,155.71,0.2]
[1751325768649,26.02,155.72,155.71,0.2]
[1751325768853,5.29530907,155.72,155.71,0.2]
[1751325774850,5.29530907,155.72,155.71,6.6221951]
[1751325775036,5.29530907,155.72,155.71,4.9539618]
[1751325780479,6.52072848,155.75,155.71,4.9539618]
[1751325780769,6.52072848,155.75,155.72,4.7539618]
[1751325781866,6.52072848,155.75,155.72,11.4539618]
[1751325782262,6.52072848,155.75,155.72,6.7]
[1751325784659,0.1,155.75,155.74,4.7539618]
[1751325787467,0.1,155.75,155.74,11.1749198]
[1751325789268,0.1,155.75,155.74,12.8002198]
[1751325791779,0.1,155.75,155.74,4.7539618]
[1751325794381,0.1,155.75,155.73,4.7539618]
[1751325794583,0.1,155.75,155.72,6.7]
[1751325794584,0.1,155.75,155.72,11.4539618]
[1751325796057,0.1,155.75,155.73,4.7539618]
[1751325798872,0.1,155.75,155.72,6.9]
[1751325799075,0.1,155.75,155.73,4.7539618]
[1751325800954,0.1,155.75,155.74,4.7539618]
[1751325804280,0.1,155.75,155.73,4.7539618]
[1751325806979,6.52073491,155.75,155.73,4.7539618]
[1751325810895,1.08694289,155.74,155.72,0.2]
[1751325811068,31.07828494,155.73,155.72,0.2]
[1751325811370,31.22044651,155.73,155.72,0.2]
[1751325811982,37.64181683,155.73,155.72,0.2]
[1751325814674,42.44290861,155.73,155.72,0.2]
[1751325815184,11.64894681,155.73,155.72,0.2]
[1751325815389,37.66181683,155.73,155.72,0.2]
[1751325815592,42.46290861,155.73,155.72,0.2]
[1751325815793,32.90785503,155.73,155.72,0.2]
[1751325817105,42.46042828,155.73,155.72,0.2]
[1751325817296,37.66181683,155.73,155.72,0.2]
[1751325820281,61.10685844,155.73,155.72,0.2]
[1751325820682,0.42648471,155.72,155.71,0.2]
[1751325820997,32.06316934,155.72,155.71,0.2]
[1751325821186,36.85856209,155.72,155.71,0.2]
[1751325821798,43.28034477,155.72,155.71,0.2]
[1751325823298,38.48495202,155.72,155.71,0.2]
[1751325823607,153.42450551,155.72,155.71,0.2]
[1751325823813,178.72178268,155.72,155.71,0.2]
[1751325824117,183.90222919,155.72,155.71,0.2]
[1751325824684,153.04826739,155.72,155.71,0.2]
[1751325824881,179.18826739,155.72,155.71,0.2]
[1751325826587,183.94222919,155.72,155.71,0.2]
[1751325827412,179.04610582,155.72,155.71,0.2]
[1751325827589,183.80006762,155.72,155.71,0.2]
[1751325829980,179.04610582,155.72,155.71,0.2]
[1751325831317,152.90610582,155.72,155.71,0.2]
[1751325831613,179.02610582,155.72,155.71,0.2]
[1751325834407,183.92222919,155.72,155.71,0.2]
[1751325840409,179.16826739,155.72,155.71,0.2]
[1751325840626,183.92222919,155.72,155.71,0.2]
[1751325841518,178.74178268,155.72,155.71,0.2]
[1751325841817,179.02610582,155.72,155.71,0.2]
[1751325843600,183.78006762,155.72,155.71,0.2]
[1751325843806,183.92222919,155.72,155.71,0.2]
[1751325845517,16.15136436,155.75,155.71,4.9539618]
[1751325845518,6.52069408,155.75,155.71,4.9539618]
[1751325845830,26.12,155.74,155.72,4.7539618]
[1751325846002,0.1,155.75,155.73,4.7539618]
[1751325846414,26.22,155.75,155.73,4.7539618]
[1751325846618,32.64057527,155.75,155.73,4.7539618]
[1751325847134,32.64057527,155.75,155.72,4.7539618]
[1751325848606,32.64057527,155.75,155.71,0.2]
[1751325848607,4.7539618,155.73,155.71,0.2]
[1751325848804,26.12,155.72,155.71,0.2]
[1751325850615,32.54178268,155.72,155.71,0.2]
[1751325856220,38.38279045,155.72,155.71,0.2]
[1751325856533,43.33420418,155.72,155.71,0.2]
[1751325859542,38.52495202,155.72,155.71,0.2]
[1751325859720,37.72222919,155.72,155.71,0.2]
[1751325860933,42.53199345,155.72,155.71,0.2]
[1751325861116,43.33471628,155.72,155.71,0.2]
[1751325863844,38.58075448,155.72,155.71,0.2]
[1751325864045,38.68075448,155.72,155.71,0.2]
[1751325864248,43.43471628,155.72,155.71,0.2]
[1751325870636,38.68075448,155.72,155.71,0.2]
[1751325870937,43.43471628,155.72,155.71,0.2]
[1751325879720,41.7261742,155.72,155.71,0.2]
[1751325890053,38.68075448,155.72,155.71,0.2]
[1751325890255,41.7261742,155.72,155.71,0.2]
[1751325893178,41.7261742,155.72,155.71,0.2]
[1751325893954,38.53859291,155.72,155.71,0.2]
[1751325894158,0.1,155.72,155.71,0.2]